[Event "Israel National League 2024"]
[Site "Israel"]
[Date "2024.01.12"]
[Round "2.13"]
[White "Levin, Guy"]
[Black "Rodshtein, Maxim"]
[Result "0-1"]
[ECO "A11"]
[WhiteElo "2435"]
[BlackElo "2580"]
[Annotator "TA"]
[PlyCount "58"]
[EventDate "2024.01.07"]
[EventType "team-tourn"]
[EventCountry "ISR"]
[SourceTitle "playchess.com"]
[Source "ChessBase"]
[SourceQuality "1"]
[TimeControl "40/5400+30:1800+30"]

{[%evp 9,58,12,10,7,13,13,3,15,7,0,11,0,0,0,0,0,0,0,0,0,0,8,31,0,0,-13,-4,-36,-21,-206,-207,-192,-200,-209,-203,-205,-204,-438,-422,-446,-448,-422,-433,-439,-449,-443,-449,-431,-429,-591,-581]} 1. Nf3 {[%emt 0:00:09]} d5 {[%emt 0:00:44]} 2. e3 {[%emt 0:00:06]} Nf6 {[%emt 0:00:52][%cal Bg8f6,Bf6d5,Bd5b4][%mdl 32]} 3. c4 {[%emt 0:00:08]} c6 {[%emt 0:01:46]} 4. Nc3 {[%emt 0:00:07]} Nbd7 {[%emt 0:03:24]} 5. Qc2 {[%emt 0:01:38]} e5 {[%emt 0:01:23]} 6. cxd5 {[%emt 0:02:24] A11: English Opening: 1...c6.} Nxd5 {[%emt 0:00:07]} 7. d4 {[%emt 0:12:38]} Nb4 {[%emt 0:01:45]} 8. Qb1 {[%emt 0:10:51] The position is equal.} exd4 {[%emt 0:01:35]} 9. Nxd4 {[%emt 0:01:17]} (9. Qe4+ Be7 10. Nxd4 Nc5 $15) 9... Nf6 {[%emt 0:02:19] [#]} 10. Bd2 $146 {[%emt 0:02:30]} ({Predecessor:} 10. Be2 c5 11. Nf3 Bd6 12. O-O O-O 13. b3 Qe7 14. Bb2 Bg4 15. Nb5 Bb8 16. Ng5 {½-½ Demuth,A (2498)-Admiraal,M (2506) BEL-chT 1920 2019 (8.3)}) 10... g6 {[%emt 0:14:02]} 11. a3 {[%emt 0:03:26]} Nbd5 {[%emt 0:01:11]} 12. Bc4 {[%emt 0:01:18]} Nb6 {[%emt 0:03:08]} 13. Ba2 {[%emt 0:06:01]} Bg7 {[%emt 0:02:29]} 14. O-O {[%emt 0:01:42]} O-O {[%emt 0:01:30]} 15. Qc2 {[%emt 0:02:57]} Qe7 {[%emt 0:04:19]} (15... c5 $5 {[%cal Rc5d4]} 16. Nf3 Bg4 $11) 16. b4 {[%emt 0:11:14]} Rd8 {[%emt 0:05:20]} 17. a4 {[%emt 0:07:01]} (17. Bb3 $5) 17... Nbd5 {[%emt 0:27:58]} 18. Nxd5 {[%emt 0:07:55]} Nxd5 {[%emt 0:00:08]} 19. Qb3 $2 {[%emt 0:02:06] [#] This costs White the game.} (19. Bxd5 $11 {and White has nothing to worry.} Rxd5 20. Bc3) 19... a5 $1 $19 {[%emt 0:03:53][%mdl 576] Deflection} 20. bxa5 {[%emt 0:09:50]} c5 {[%emt 0:00:33]} 21. Nf3 {[%emt 0:00:27]} Bxa1 {[%emt 0:02:31]} 22. Rxa1 {[%emt 0:00:04][%cal Oe3e4]} Bg4 {[%emt 0:02:40] Hoping for ...Bxf3.} 23. Rb1 $2 {[%emt 0:01:38]} (23. Ne1) 23... Bxf3 {[%emt 0:01:41] Black is clearly winning.} 24. gxf3 {[%emt 0:00:08] [#]} Nf4 $1 {[%emt 0:00:28][%mdl 512]} 25. exf4 {[%emt 0:01:36] Black must now prevent Bc3.} Rxd2 {[%emt 0:00:06]} 26. Kg2 {[%emt 0:00:38]} Rad8 {[%emt 0:02:30]} ({Not} 26... Rxa5 27. Qc3 Rxa2 28. Qxa5 $17) (26... Qh4 27. Qxf7+ Kh8 28. Rf1 $15) 27. Re1 {[%emt 0:01:19]} Qf6 {[%emt 0:01:55]} (27... Qxe1 $2 {is a self mate.} 28. Qxf7+ Kh8 29. Qf6#) 28. Qc4 {[%emt 0:00:37]} Kg7 {[%emt 0:01:31] Threatens to win with ...R8d4.} ({Weaker is} 28... Qh4 29. Re8+ Rxe8 30. Qxf7+ Kh8 31. Qxe8+ Kg7 32. Qg8+ Kh6 33. Qf8+ Kh5 34. Qxc5+ Kh6 35. Bd5 $11) 29. Bb3 {[%emt 0:01:01]} Rb2 {[%emt 0:01:40] Weighted Error Value: White=0.38/Black=0.01 (flawless)} 0-1

[Event "Israel National League 2024"]
[Site "Israel"]
[Date "2024.01.12"]
[Round "2.14"]
[White "Zanan, Evgeny"]
[Black "Gorodetzky, David"]
[Result "1/2-1/2"]
[ECO "C54"]
[WhiteElo "2487"]
[BlackElo "2486"]
[Annotator "TA"]
[PlyCount "38"]
[EventDate "2024.01.07"]
[EventType "team-tourn"]
[EventCountry "ISR"]
[SourceTitle "playchess.com"]
[Source "ChessBase"]
[SourceQuality "1"]
[TimeControl "40/5400+30:1800+30"]

{[%evp 11,38,12,14,7,25,12,25,22,57,0,0,0,7,0,21,19,13,0,12,-15,-27,-23,-22,-18,-31,-29,15,0,12]} 1. e4 {[%emt 0:00:06]} e5 {[%emt 0:00:02]} 2. Nf3 {[%emt 0:00:07]} Nc6 {[%emt 0:00:02]} 3. Bc4 {[%emt 0:00:07]} Bc5 {[%emt 0:00:50]} 4. c3 {[%emt 0:00:16]} Nf6 {[%emt 0:00:07]} 5. d3 {[%emt 0:00:19]} d6 {[%emt 0:01:29]} 6. O-O {[%emt 0:02:43]} a6 {[%emt 0:01:46]} 7. a4 {[%emt 0:00:16] C54: Giuoco Piano: 4 c3 Nf6, main lines with 5 d4 and 5 d3.} Ba7 {[%emt 0:01:55]} 8. Re1 $1 {[%emt 0:02:15] The main line 8.Re1 scores better than 8.Nbd2.} h6 {[%emt 0:02:52][%cal Bh7h6,Bh6h5,Bh5h4][%mdl 32]} 9. Nbd2 {[%emt 0:09:46] White has an edge.} g5 {[%emt 0:04:26][%cal Bg7g5,Bg5g4][%mdl 32]} 10. Nf1 {[%emt 0:23:33]} (10. b4 $14) 10... g4 $11 {[%emt 0:08:36]} 11. N3d2 {[%emt 0:04:13]} h5 {[%emt 0:08:37]} 12. Nb3 {[%emt 0:03:56]} h4 {[%emt 0:15:14][%cal Og4g3]} 13. Be3 {[%emt 0:11:58] [#]} Nh5 $146 {[%emt 0:10:53]} ({Predecessor:} 13... Be6 14. Bxe6 fxe6 15. Bxa7 Nxa7 16. d4 Nc6 17. Ne3 Rg8 18. Nc4 Qe7 19. dxe5 dxe5 {1-0 Cori Quispe,K (2411)-Moroni,L (2499) Wch U18 Montevideo 2017 (9)}) 14. Qd2 {[%emt 0:08:34]} Qf6 {[%emt 0:09:50]} 15. Bg5 {[%emt 0:10:05] [#]} (15. Bxa7 {simplifies} Nxa7 16. d4 Be6 17. dxe5 Qxe5 18. Bd5) 15... Bxf2+ $1 {[%emt 0:12:51][%mdl 64] Deflection} 16. Qxf2 {[%emt 0:00:45]} Qxg5 {[%emt 0:00:02]} 17. Bxf7+ {[%emt 0:01:13]} Ke7 $1 {[%emt 0:03:28] Strongly threatening ...g3.} 18. Bxh5 {[%emt 0:00:44]} Rf8 {[%emt 0:03:01] Inhibits Qf7+.} (18... Rxh5 $5 19. Ne3 Be6 20. Nd5+ Bxd5 21. exd5 g3 $15) 19. Qe2 {[%emt 0:01:38][%cal Of1e3]} Qxh5 {[%emt 0:01:44] Weighted Error Value: White=0.11 (very precise) /Black=0.13 (very precise)} 1/2-1/2

[Event "Israel National League 2024"]
[Site "Israel"]
[Date "2024.01.12"]
[Round "2.15"]
[White "Grinberg, Eyal"]
[Black "Bronstein, Or"]
[Result "1/2-1/2"]
[ECO "C07"]
[WhiteElo "2471"]
[BlackElo "2441"]
[Annotator "TA"]
[PlyCount "128"]
[EventDate "2024.01.07"]
[EventType "team-tourn"]
[EventCountry "ISR"]
[SourceTitle "playchess.com"]
[Source "ChessBase"]
[SourceQuality "1"]
[TimeControl "40/5400+30:1800+30"]

{[%evp 13,128,5,12,0,0,0,-3,-1,-2,-1,0,0,0,-2,-6,-14,-10,-35,-16,-30,-29,-41,-29,-53,-14,-51,-34,-60,-37,-54,-26,-28,-34,-45,-40,-35,-25,-32,-27,-20,-24,-25,-18,-25,-19,-25,-6,-16,0,-28,-17,-37,0,-8,0,0,0,0,66,80,334,335,344,335,337,297,514,499,523,522,546,545,505,475,695,647,780,536,510,312,269,74,96,0,0,0,14,0,0,0,0,0,0,0,0,0,49,0,8,11,203,241,162,257,213,0,10,0,0,0,0,0,0,0,0,0,0]} 1. e4 {[%emt 0:00:08]} e6 {[%emt 0:00:17]} 2. d4 {[%emt 0:00:07]} d5 {[%emt 0:00:04]} 3. Nd2 {[%emt 0:00:04]} c5 {[%emt 0:00:21]} 4. exd5 {[%emt 0:01:28]} Qxd5 {[%emt 0:01:32]} 5. dxc5 {[%emt 0:02:32]} Bxc5 {[%emt 0:00:55]} 6. Ngf3 {[%emt 0:00:08]} Nf6 {[%emt 0:00:12]} 7. Bc4 {[%emt 0:02:01]} Qh5 {[%emt 0:00:15]} 8. Nb3 {[%emt 0:05:00] C07: French Tarrasch: 3...c5, 4 Ngf3 and 4 exd5 Qxd5.} Bb6 {[%emt 0:00:32]} 9. Qe2 {[%emt 0:03:35] [#]} Bd7 $146 {[%emt 0:04:30]} ({Predecessor:} 9... O-O 10. Bf4 Qg4 11. g3 Nc6 12. h3 Qh5 13. O-O-O e5 14. g4 Qg6 15. Nh4 Qe4 {1-0 Wacker,P (2273)-Engemann,T (2049) Bad Woerishofen op 38th 2023 (8)}) 10. Be3 {[%emt 0:02:28]} Bxe3 {[%emt 0:02:59]} 11. Qxe3 {[%emt 0:00:36]} Bb5 {[%emt 0:00:54]} ({Resist} 11... Qg4 12. Ne5 Qe4 13. Qxe4 Nxe4 14. Rd1 $14) 12. Bxb5+ {[%emt 0:08:42]} Qxb5 {[%emt 0:00:08]} 13. O-O-O {[%emt 0:00:08]} O-O {[%emt 0:15:22]} 14. Qe5 {[%emt 0:06:42]} Qb6 {[%emt 0:05:07]} 15. Qd4 {[%emt 0:10:14] Wards off Ng4} Qa6 {[%emt 0:03:01]} 16. Kb1 {[%emt 0:07:45]} Nc6 {[%emt 0:00:09]} 17. Qh4 {[%emt 0:00:16]} Rfd8 {[%emt 0:08:18]} 18. a3 {[%emt 0:06:06]} Qe2 {[%emt 0:10:10]} 19. Rde1 {[%emt 0:05:30]} Qb5 {[%emt 0:00:15]} 20. Re3 {[%emt 0:00:35]} Rac8 {[%emt 0:05:07]} 21. Rhe1 {[%emt 0:04:45]} Qf5 {[%emt 0:02:27]} 22. h3 {[%emt 0:06:37]} h6 {[%emt 0:06:20]} 23. Nfd2 {[%emt 0:12:14]} Ne7 {[%emt 0:10:41]} 24. Ne4 $1 {[%emt 0:03:27]} Nxe4 {[%emt 0:01:21]} 25. Rxe4 {[%emt 0:01:28]} Ng6 {[%emt 0:00:01]} 26. Qg3 {[%emt 0:00:55] [#]} Rd1+ $1 {[%emt 0:06:43][%mdl 64] Deflection} 27. Rxd1 {[%emt 0:00:14]} Qxe4 {[%emt 0:00:02]} 28. Rd2 {[%emt 0:01:37]} Ne5 {[%emt 0:08:02]} 29. f3 {[%emt 0:01:29]} Qf5 {[%emt 0:01:27]} 30. Qh4 {[%emt 0:01:44]} Qg5 {[%emt 0:03:18]} 31. Qb4 {[%emt 0:01:32]} Nc4 {[%emt 0:01:14][%mdl 64] Deflection} 32. Rd7 {[%emt 0:02:10]} Qe5 {[%emt 0:03:17][%csl Gc4][%cal Re5b2]} (32... b6 {simplifies} 33. Qe7 Qxe7 34. Rxe7 a5) 33. Nd2 $1 $132 {[%emt 0:04:08][%mdl 2048] White has counterplay} Nb6 {[%emt 0:01:16]} 34. Rxb7 {[%emt 0:00:20]} Qe1+ {[%emt 0:00:28]} 35. Ka2 {[%emt 0:00:02] And now Qf4 would win.} Nd5 {[%emt 0:00:32] Repels Qf4} (35... Rxc2 $11 36. Rxa7 Qxd2 37. Qxb6 Qd5+ 38. Qb3 Rxb2+ {[%mdl 64] Decoy} 39. Kxb2 Qd4+ 40. Qc3 Qb6+ 41. Ka2 Qxa7) 36. Qd4 $14 {[%emt 0:00:32] Threatens to win with c4.} Qc1 $2 {[%emt 0:00:41][%mdl 8192]} (36... a5 $16 {was called for.}) 37. c4 $18 {[%emt 0:00:32][%cal Bc2c4,Bc4c5,Bc5c6,Bc6c7][%mdl 32]} (37. Rxa7 $2 {perishes.} Nc3+ 38. bxc3 Qxc2+ 39. Ka1 Rb8 $19) 37... Nf6 {[%emt 0:00:27]} 38. Rxa7 {[%emt 0:00:32]} e5 {[%emt 0:00:23]} 39. Qd3 {[%emt 0:00:43]} ({Stronger than} 39. Qxe5 Qxd2 40. Rc7 Re8 $17) 39... Rb8 $2 {[%emt 0:00:34]} (39... Qg1 {was worth a try.}) 40. Nb3 {[%emt 0:00:24]} Qg1 {[%emt 0:00:05]} 41. c5 {[%emt 0:30:35]} Qxg2 {[%emt 0:30:50]} 42. c6 {[%emt 0:00:49]} Qxh3 {[%emt 0:00:00]} 43. c7 {[%emt 0:00:00]} Re8 {[%emt 0:00:00]} (43... Rf8 $142 44. Rb7 Qc8) 44. Rb7 {[%emt 0:00:00]} e4 {[%emt 0:00:00]} 45. Qc4 {[%emt 0:00:00]} Rc8 {[%emt 0:00:00]} 46. fxe4 {[%emt 0:00:00]} Qd7 {[%emt 0:00:00]} 47. Rb8 $2 {[%emt 0:00:00]} (47. Nd4 $18 {has better winning chances.}) 47... Ne8 $16 {[%emt 0:00:00] [#]} 48. Qa6 {[%emt 0:00:00] White has more active pieces.} (48. Rxc8 $1 $16 {White wants to mate with Rd8.} Qxc8 49. a4) 48... Rxc7 $11 {[%emt 0:00:00]} 49. e5 {[%emt 0:00:00] Hoping for Qd6.} (49. Qa8 $5 Kf8 $8 50. Qa6 $11) 49... Kf8 {[%emt 0:00:57]} 50. Qb6 {[%emt 0:00:00]} Rc8 {[%emt 0:02:51]} 51. Qb4+ {[%emt 0:00:00]} Kg8 {[%emt 0:00:01]} 52. Rxc8 {[%emt 0:00:00]} Qxc8 {[%emt 0:00:01][%mdl 4096] Endgame KQN-KQN} 53. a4 {[%emt 0:00:00]} Nc7 {[%emt 0:01:25]} 54. Qc4 {[%emt 0:00:12]} Qb7 {[%emt 0:01:07]} (54... h5 $11) 55. Nd4 {[%emt 0:00:52]} (55. Nc5 $14 Qc8 56. b4) 55... Nd5 {[%emt 0:00:32]} 56. Nf5 {[%emt 0:01:27]} Nb4+ $2 {[%emt 0:00:38]} (56... h5 $1 $11) 57. Ka3 $18 {[%emt 0:00:10][%cal Of5d6] Nd6! is the strong threat.} Qf3+ {[%emt 0:00:35]} 58. Kxb4 {[%emt 0:00:05]} Qxf5 {[%emt 0:00:02] [#] KQ-KQ} 59. Qd5 {[%emt 0:02:01]} (59. e6 $1 $18 {[%cal Re6e7]} fxe6 60. a5) 59... Qf2 {[%emt 0:00:07] The position is equal.} 60. b3 {[%emt 0:00:33]} h5 {[%emt 0:00:32]} 61. e6 {[%emt 0:01:56] Qd8+ would be deadly.} Qb6+ {[%emt 0:00:21]} 62. Ka3 {[%emt 0:00:36] aiming for e7.} fxe6 {[%emt 0:00:06]} 63. Qxh5 {[%emt 0:00:06] Black must now prevent Qe5.} Qd6+ {[%emt 0:00:10]} 64. Kb2 {[%emt 0:00:36]} Qd2+ {[%emt 0:00:02] Weighted Error Value: White=0.29 (precise) /Black=0.29 (precise)} 1/2-1/2

[Event "Israel National League 2024"]
[Site "Israel"]
[Date "2024.01.12"]
[Round "2.16"]
[White "Oratovsky, Michael"]
[Black "Mesropov, Konstantin"]
[Result "1/2-1/2"]
[ECO "C09"]
[WhiteElo "2412"]
[BlackElo "2440"]
[Annotator "RC"]
[PlyCount "61"]
[EventDate "2024.01.07"]
[EventType "team-tourn"]
[EventCountry "ISR"]
[SourceTitle "playchess.com"]
[Source "ChessBase"]
[SourceQuality "1"]
[TimeControl "40/5400+30:1800+30"]

1. e4 {[%emt 0:00:04]} e6 {[%emt 0:00:09]} 2. d4 {[%emt 0:00:14]} d5 {[%emt 0:00:07]} 3. Nd2 {[%emt 0:00:06]} c5 {[%emt 0:01:55]} 4. Ngf3 {[%emt 0:01:07]} Nc6 {[%emt 0:00:34]} 5. exd5 {[%emt 0:01:33]} exd5 {[%emt 0:02:51]} 6. Bb5 {[%emt 0:05:00]} Qe7+ {[%emt 0:01:01]} 7. Be2 {[%emt 0:00:24]} Qc7 {[%emt 0:00:34]} 8. O-O {[%emt 0:01:11]} Nf6 {[%emt 0:01:56]} 9. Re1 {[%emt 0:17:43]} cxd4 {[%emt 0:07:42]} 10. Nb3 {[%emt 0:16:09]} Bb4 {[%emt 0:01:12]} 11. Bd2 {[%emt 0:01:00]} Bxd2 {[%emt 0:00:08]} 12. Qxd2 {[%emt 0:00:52]} O-O {[%emt 0:01:16]} 13. Nfxd4 {[%emt 0:05:57]} Bd7 {[%emt 0:00:58]} 14. c3 {[%emt 0:10:38]} Ne4 {[%emt 0:12:28]} 15. Qc2 {[%emt 0:08:58]} Ne5 {[%emt 0:04:53]} 16. Nd2 {[%emt 0:07:39]} Nf6 {[%emt 0:03:08]} 17. N2f3 {[%emt 0:15:35]} Ng6 {[%emt 0:06:37]} 18. Bf1 {[%emt 0:02:05]} Rad8 {[%emt 0:10:05]} 19. g3 {[%emt 0:01:17]} a6 {[%emt 0:11:23]} 20. Bg2 {[%emt 0:00:33]} Qc8 {[%emt 0:00:24]} 21. Ne5 {[%emt 0:01:18]} Bh3 {[%emt 0:02:03]} 22. Bxh3 {[%emt 0:01:04]} Qxh3 {[%emt 0:01:11]} 23. Qf5 {[%emt 0:00:22]} Qxf5 {[%emt 0:02:57]} 24. Nxf5 {[%emt 0:00:05]} Nxe5 {[%emt 0:02:34]} 25. Rxe5 {[%emt 0:00:04]} g6 {[%emt 0:02:43]} 26. Nd4 {[%emt 0:00:14]} Rfe8 {[%emt 0:00:36]} 27. Rae1 {[%emt 0:00:16]} Kf8 {[%emt 0:02:08]} 28. f3 {[%emt 0:01:31]} Rxe5 {[%emt 0:03:40]} 29. Rxe5 {[%emt 0:00:05]} Re8 {[%emt 0:00:25]} 30. Rxe8+ {[%emt 0:00:30]} Nxe8 {[%emt 0:00:26]} 31. Kf2 {[%emt 0:02:26]} 1/2-1/2

[Event "Israel National League 2024"]
[Site "Israel"]
[Date "2024.01.12"]
[Round "2.17"]
[White "Bakalchuk, Johnatan"]
[Black "Veinberg, Nimrod"]
[Result "0-1"]
[ECO "A07"]
[WhiteElo "2450"]
[BlackElo "2411"]
[Annotator "RC"]
[PlyCount "80"]
[EventDate "2024.01.07"]
[EventType "team-tourn"]
[EventCountry "ISR"]
[SourceTitle "playchess.com"]
[Source "ChessBase"]
[SourceQuality "1"]
[TimeControl "40/5400+30:1800+30"]

1. Nf3 {[%emt 0:00:36]} d5 {[%emt 0:01:44]} 2. g3 {[%emt 0:00:20]} Nd7 {[%emt 0:01:17]} 3. Bg2 {[%emt 0:08:13]} e5 {[%emt 0:01:36]} 4. O-O {[%emt 0:00:08]} Ngf6 {[%emt 0:02:11]} 5. d3 {[%emt 0:00:40]} Be7 {[%emt 0:08:06]} 6. e4 {[%emt 0:10:29]} dxe4 {[%emt 0:00:59]} 7. dxe4 {[%emt 0:00:12]} O-O {[%emt 0:02:34]} 8. Qe2 {[%emt 0:01:33]} Re8 {[%emt 0:03:21]} 9. b3 {[%emt 0:03:45]} Bc5 {[%emt 0:07:57]} 10. Bb2 {[%emt 0:01:46]} Qe7 {[%emt 0:02:11]} 11. Nbd2 {[%emt 0:01:04]} Ba3 {[%emt 0:03:52]} 12. Bxa3 {[%emt 0:04:26]} Qxa3 {[%emt 0:00:11]} 13. Qc4 {[%emt 0:11:42]} Qc5 {[%emt 0:16:04]} 14. Rfe1 {[%emt 0:01:38]} b6 {[%emt 0:02:04]} 15. Qxc5 {[%emt 0:15:22]} Nxc5 {[%emt 0:00:07]} 16. b4 {[%emt 0:00:03]} Ncd7 {[%emt 0:03:08]} 17. Nc4 {[%emt 0:01:06]} a5 {[%emt 0:09:53]} 18. Nfxe5 {[%emt 0:09:35]} Nxe5 {[%emt 0:03:12]} 19. Nxe5 {[%emt 0:00:31]} Bb7 {[%emt 0:03:22]} 20. Nc4 {[%emt 0:11:37]} axb4 {[%emt 0:03:45]} 21. e5 {[%emt 0:02:27]} Bxg2 {[%emt 0:00:39]} 22. Kxg2 {[%emt 0:00:23]} Nd5 {[%emt 0:00:22]} 23. Red1 {[%emt 0:07:15]} c6 {[%emt 0:09:05]} 24. Rxd5 {[%emt 0:00:15]} cxd5 {[%emt 0:00:08]} 25. Nxb6 {[%emt 0:00:02]} Rab8 {[%emt 0:10:21]} 26. Nxd5 {[%emt 0:00:20]} Rxe5 {[%emt 0:00:08]} 27. Ne3 {[%emt 0:07:37]} Ra5 {[%emt 0:00:48]} 28. Kf3 {[%emt 0:00:01]} f5 {[%emt 0:00:19]} 29. h4 {[%emt 0:00:08]} Kf7 {[%emt 0:00:17]} 30. Kf4 {[%emt 0:00:44]} Ra4 {[%emt 0:02:20]} 31. Nc4 {[%emt 0:01:13]} Kf6 {[%emt 0:01:44]} 32. Rd1 {[%emt 0:00:10]} Rxa2 {[%emt 0:01:18]} 33. Ne3 {[%emt 0:00:02]} b3 {[%emt 0:00:36]} 34. Rd6+ {[%emt 0:01:36]} Kf7 {[%emt 0:00:01]} 35. cxb3 {[%emt 0:00:30]} Rxf2+ {[%emt 0:00:02]} 36. Kg5 {[%emt 0:00:10]} Rxb3 {[%emt 0:00:46]} 37. Nxf5 {[%emt 0:00:41]} h6+ {[%emt 0:00:25]} 38. Kg4 {[%emt 0:00:01]} h5+ {[%emt 0:00:37]} 39. Kg5 {[%emt 0:00:01]} Rb5 {[%emt 0:00:18]} 40. Rd7+ {[%emt 0:01:37]} Ke8 {[%emt 0:00:15]} 0-1

[Event "Israel National League 2024"]
[Site "Israel"]
[Date "2024.01.12"]
[Round "2.18"]
[White "Kaspi, Alexander"]
[Black "Shohat, Yotam"]
[Result "1/2-1/2"]
[ECO "A65"]
[WhiteElo "2375"]
[BlackElo "2328"]
[Annotator "RC"]
[PlyCount "97"]
[EventDate "2024.01.07"]
[EventType "team-tourn"]
[EventCountry "ISR"]
[SourceTitle "playchess.com"]
[Source "ChessBase"]
[SourceQuality "1"]
[TimeControl "40/5400+30:1800+30"]

1. d4 {[%emt 0:00:04]} Nf6 {[%emt 0:00:04]} 2. c4 {[%emt 0:00:06]} g6 {[%emt 0:00:03]} 3. Nc3 {[%emt 0:00:34]} Bg7 {[%emt 0:00:06]} 4. e4 {[%emt 0:00:05]} O-O {[%emt 0:00:05]} 5. Be3 {[%emt 0:00:52]} d6 {[%emt 0:00:05]} 6. f3 {[%emt 0:00:05]} c5 {[%emt 0:00:05]} 7. Nge2 {[%emt 0:00:14]} Nc6 {[%emt 0:00:12]} 8. d5 {[%emt 0:00:09]} Ne5 {[%emt 0:00:04]} 9. Ng3 {[%emt 0:00:06]} e6 {[%emt 0:00:07]} 10. Be2 {[%emt 0:00:05]} exd5 {[%emt 0:00:04]} 11. cxd5 {[%emt 0:00:19]} a6 {[%emt 0:00:07]} 12. a4 {[%emt 0:00:04]} h5 {[%emt 0:00:06]} 13. O-O {[%emt 0:00:07]} Nh7 {[%emt 0:00:07]} 14. Qd2 {[%emt 0:00:24]} h4 {[%emt 0:00:07]} 15. Nh1 {[%emt 0:00:05]} f5 {[%emt 0:00:06]} 16. Nf2 {[%emt 0:00:08]} Bd7 {[%emt 0:00:09]} 17. Kh1 {[%emt 0:10:45]} Nf7 {[%emt 0:06:05]} 18. exf5 {[%emt 0:00:20]} gxf5 {[%emt 0:00:13]} 19. Nh3 {[%emt 0:01:16]} Re8 {[%emt 0:06:29]} 20. Rfe1 {[%emt 0:05:23]} Qf6 {[%emt 0:08:10]} 21. a5 {[%emt 0:06:58]} Re5 {[%emt 0:06:58]} 22. Bf1 {[%emt 0:04:44]} Rae8 {[%emt 0:04:23]} 23. Bf2 {[%emt 0:13:34]} Nf8 {[%emt 0:04:51]} 24. f4 {[%emt 0:08:06]} Rxe1 {[%emt 0:02:22]} 25. Bxe1 {[%emt 0:02:32]} Qd4 {[%emt 0:04:28]} 26. Qc2 {[%emt 0:05:38]} Ng6 {[%emt 0:00:22]} 27. Bf2 {[%emt 0:06:06]} Qf6 {[%emt 0:09:16]} 28. Qd2 {[%emt 0:09:15]} Nh6 {[%emt 0:03:23]} 29. Re1 {[%emt 0:08:36]} Ng4 {[%emt 0:01:55]} 30. Bg1 {[%emt 0:02:06]} Rxe1 {[%emt 0:07:17]} 31. Qxe1 {[%emt 0:00:06]} Qe7 {[%emt 0:00:18]} 32. Qd2 {[%emt 0:01:11]} Bf6 {[%emt 0:04:29]} 33. Bd3 {[%emt 0:04:03]} Qg7 {[%emt 0:16:33]} 34. Nd1 {[%emt 0:08:06]} Bd4 {[%emt 0:02:48]} 35. Bc4 {[%emt 0:01:37]} Bxg1 {[%emt 0:10:45]} 36. Kxg1 {[%emt 0:00:14]} Nf6 {[%emt 0:02:55]} 37. Ng5 {[%emt 0:03:11]} Ne4 {[%emt 0:00:08]} 38. Nxe4 {[%emt 0:01:02]} fxe4 {[%emt 0:00:03]} 39. Nf2 {[%emt 0:00:28]} Bf5 {[%emt 0:00:10]} 40. Kf1 {[%emt 0:01:06]} Qh6 {[%emt 0:01:21]} 41. g3 {[%emt 0:01:03]} hxg3 {[%emt 0:17:20]} 42. hxg3 {[%emt 0:00:26]} Qh2 {[%emt 0:01:40]} 43. Qe3 {[%emt 0:06:37]} Ne7 {[%emt 0:00:27]} 44. g4 {[%emt 0:03:25]} Bxg4 {[%emt 0:02:26]} 45. Qxe4 {[%emt 0:01:27]} Nf5 {[%emt 0:10:52]} 46. Qe8+ {[%emt 0:04:03]} Kg7 {[%emt 0:00:05]} 47. Qd7+ {[%emt 0:00:06]} Kg6 {[%emt 0:00:12]} 48. Qe8+ {[%emt 0:00:11]} Kg7 {[%emt 0:00:03]} 49. Qd7+ {[%emt 0:00:05]} 1/2-1/2

[Event "Israel National League 2024"]
[Site "Israel"]
[Date "2024.01.12"]
[Round "2.19"]
[White "Sokolovsky, Yahli"]
[Black "Emanuel, Yahav"]
[Result "1-0"]
[ECO "C65"]
[WhiteElo "2436"]
[BlackElo "2333"]
[Annotator "RC"]
[PlyCount "59"]
[EventDate "2024.01.07"]
[EventType "team-tourn"]
[EventCountry "ISR"]
[SourceTitle "playchess.com"]
[Source "ChessBase"]
[SourceQuality "1"]
[TimeControl "40/5400+30:1800+30"]

1. e4 {[%emt 0:00:05]} e5 {[%emt 0:00:09]} 2. Nf3 {[%emt 0:00:07]} Nc6 {[%emt 0:00:14]} 3. Bb5 {[%emt 0:00:22]} Nf6 {[%emt 0:00:28]} 4. O-O {[%emt 0:00:48]} Bc5 {[%emt 0:00:15]} 5. Nxe5 {[%emt 0:00:22]} Nxe4 {[%emt 0:02:12]} 6. Qe1 {[%emt 0:01:31]} Nxe5 {[%emt 0:02:49]} 7. d4 {[%emt 0:00:08]} Be7 {[%emt 0:02:56]} 8. dxe5 {[%emt 0:00:07]} Nc5 {[%emt 0:00:39]} 9. b4 {[%emt 0:00:08]} Ne6 {[%emt 0:01:40]} 10. f4 {[%emt 0:02:09]} c6 {[%emt 0:07:57]} 11. Bd3 {[%emt 0:01:33]} Qb6+ {[%emt 0:05:23]} 12. Be3 {[%emt 0:02:38]} Bxb4 {[%emt 0:03:08]} 13. Nd2 {[%emt 0:09:38]} Qxe3+ {[%emt 0:07:10]} 14. Qxe3 {[%emt 0:00:10]} Bc5 {[%emt 0:00:02]} 15. Rae1 {[%emt 0:00:08]} O-O {[%emt 0:25:18]} 16. Ne4 {[%emt 0:17:05]} Bxe3+ {[%emt 0:05:08]} 17. Rxe3 {[%emt 0:00:07]} d5 {[%emt 0:03:03]} 18. exd6 {[%emt 0:00:16]} Nd4 {[%emt 0:01:16]} 19. c3 {[%emt 0:16:19]} Nf5 {[%emt 0:02:37]} 20. Re2 {[%emt 0:00:06]} Rd8 {[%emt 0:09:32]} 21. Rfe1 {[%emt 0:10:33]} g6 {[%emt 0:05:55]} 22. Nf6+ {[%emt 0:08:34]} Kg7 {[%emt 0:00:43]} 23. Ne8+ {[%emt 0:00:21]} Kh6 {[%emt 0:07:30]} 24. Bxf5 {[%emt 0:08:34]} Bxf5 {[%emt 0:02:13]} 25. Re7 {[%emt 0:00:02]} g5 {[%emt 0:03:12]} 26. R1e5 {[%emt 0:07:52]} Kg6 {[%emt 0:01:06]} 27. g4 {[%emt 0:02:10]} Bxg4 {[%emt 0:00:45]} 28. Rxg5+ {[%emt 0:00:07]} Kh6 {[%emt 0:00:02]} 29. Rxf7 {[%emt 0:00:41]} Bh5 {[%emt 0:00:18]} 30. Nf6 {[%emt 0:00:06]} 1-0